[Event "*** Titled Tuesday 3|2 Blitz"]
[Site "Chess.com"]
[Date "2015.08.04"]
[Round "1"]
[White "ProphetoftheLord"]
[Black "ajkom197"]
[Result "0-1"]
[WhiteElo "1735"]
[BlackElo "2267"]
[TimeControl "180+2"]
[EndTime "11:38:28 PDT"]
[Termination "ajkom197 won on time"]

1. e4 {[%clk 0:03:01.9]} 1... c6 {[%clk 0:03:01.1]} 2. d4 {[%clk 0:03:01.5]}
2... d5 {[%clk 0:03:01.6]} 3. Nc3 {[%clk 0:03:03.1]} 3... dxe4 {[%clk
0:03:01.8]} 4. f3 {[%clk 0:03:04.6]} 4... e5 {[%clk 0:02:45.8]} 5. Be3 {[%clk
0:03:00.4]} 5... exd4 {[%clk 0:02:41.7]} 6. Bxd4 {[%clk 0:02:59.4]} 6... c5
{[%clk 0:02:34.4]} 7. Bb5+ {[%clk 0:02:52.3]} 7... Bd7 {[%clk 0:02:33.1]} 8. Bf2
{[%clk 0:02:35.4]} 8... Nf6 {[%clk 0:02:14.6]} 9. Qe2 {[%clk 0:02:28.7]} 9...
Be7 {[%clk 0:02:07.8]} 10. O-O-O {[%clk 0:02:25.7]} 10... Qa5 {[%clk 0:02:02.6]}
11. Bxd7+ {[%clk 0:02:19.1]} 11... Nbxd7 {[%clk 0:02:03]} 12. fxe4 {[%clk
0:02:04.9]} 12... Ne5 {[%clk 0:02:01]} 13. Nf3 {[%clk 0:01:58.7]} 13... Nxf3
{[%clk 0:01:57.6]} 14. gxf3 {[%clk 0:01:58.1]} 14... O-O {[%clk 0:01:56.8]} 15.
Kb1 {[%clk 0:01:47.6]} 15... Rfd8 {[%clk 0:01:55.3]} 16. Nd5 {[%clk 0:01:46.4]}
16... Nxd5 {[%clk 0:01:53.4]} 17. exd5 {[%clk 0:01:42.4]} 17... Bf6 {[%clk
0:01:53.6]} 18. Qc4 {[%clk 0:01:27.6]} 18... Rac8 {[%clk 0:01:48.5]} 19. c3
{[%clk 0:01:16.5]} 19... b5 {[%clk 0:01:47.6]} 20. Qg4 {[%clk 0:01:11.2]} 20...
c4 {[%clk 0:01:43.9]} 21. Bd4 {[%clk 0:01:04.9]} 21... Qa6 {[%clk 0:01:37.2]}
22. Bxf6 {[%clk 0:00:48.8]} 22... Qxf6 {[%clk 0:01:39.1]} 23. Ka1 {[%clk
0:00:46.1]} 23... Rc7 {[%clk 0:01:32.8]} 24. Rd4 {[%clk 0:00:41.2]} 24... Rcd7
{[%clk 0:01:31.2]} 25. Rhd1 {[%clk 0:00:40.8]} 25... Qe5 {[%clk 0:01:22.1]} 26.
f4 {[%clk 0:00:31]} 26... Qe3 {[%clk 0:01:16.7]} 27. a3 {[%clk 0:00:21.1]} 27...
h6 {[%clk 0:01:16.5]} 28. f5 {[%clk 0:00:18.6]} 28... a5 {[%clk 0:01:09.2]} 29.
f6 {[%clk 0:00:14]} 29... g6 {[%clk 0:01:06.1]} 30. Re4 {[%clk 0:00:10.8]} 30...
Qf2 {[%clk 0:00:53.7]} 31. Rde1 {[%clk 0:00:09.2]} 31... Qxf6 {[%clk 0:00:52.7]}
32. Re8+ {[%clk 0:00:06.2]} 32... Kg7 {[%clk 0:00:52.2]} 33. Rxd8 {[%clk
0:00:05.1]} 33... Rxd8 {[%clk 0:00:54.1]} 34. Rd1 {[%clk 0:00:03.4]} 34... h5
{[%clk 0:00:51.7]} 35. Qg2 {[%clk 0:00:04.8]} 35... b4 {[%clk 0:00:51.5]} 36.
Qe4 {[%clk 0:00:05.1]} 36... bxc3 {[%clk 0:00:51.2]} 37. Ka2 {[%clk 0:00:04.9]}
37... cxb2 {[%clk 0:00:50.7]} 38. Rb1 {[%clk 0:00:02.9]} 38... c3 {[%clk
0:00:51.3]} 39. Re1 {[%clk 0:00:02.5]} 39... Rc8 {[%clk 0:00:41.7]} 40. Re3
{[%clk 0:00:03.3]} 40... c2 {[%clk 0:00:41.9]} 0-1

[Event "*** Titled Tuesday 3|2 Blitz"]
[Site "Chess.com"]
[Date "2015.08.04"]
[Round "1"]
[White "AnthonyWirig"]
[Black "goldaxe"]
[Result "1-0"]
[WhiteElo "2524"]
[BlackElo "2162"]
[TimeControl "180+2"]
[EndTime "11:38:35 PDT"]
[Termination "AnthonyWirig won by resignation"]

1. d4 {[%clk 0:02:53.4]} 1... Nf6 {[%clk 0:02:59.4]} 2. Nc3 {[%clk 0:02:52.2]}
2... d5 {[%clk 0:02:59]} 3. Bf4 {[%clk 0:02:49.2]} 3... g6 {[%clk 0:02:57.2]} 4.
Qd2 {[%clk 0:02:46.5]} 4... Bg7 {[%clk 0:02:58.1]} 5. Bh6 {[%clk 0:02:47.4]}
5... O-O {[%clk 0:02:53.5]} 6. O-O-O {[%clk 0:02:43.9]} 6... Ne4 {[%clk
0:02:30.6]} 7. Nxe4 {[%clk 0:02:43]} 7... dxe4 {[%clk 0:02:32.5]} 8. h4 {[%clk
0:02:37.6]} 8... Qd5 {[%clk 0:02:25.4]} 9. Kb1 {[%clk 0:02:30.1]} 9... Be6
{[%clk 0:02:13.6]} 10. b3 {[%clk 0:02:30.4]} 10... Rd8 {[%clk 0:02:07.3]} 11.
Bxg7 {[%clk 0:02:26.9]} 11... Kxg7 {[%clk 0:02:08.4]} 12. h5 {[%clk 0:02:21.5]}
12... g5 {[%clk 0:02:00.2]} 13. h6+ {[%clk 0:02:22]} 13... Kh8 {[%clk
0:01:59.6]} 14. c4 {[%clk 0:02:12.7]} 14... Qf5 {[%clk 0:01:56.3]} 15. e3 {[%clk
0:02:04]} 15... f6 {[%clk 0:01:43.3]} 16. f3 {[%clk 0:01:16.3]} 16... exf3+
{[%clk 0:01:11.9]} 17. Bd3 {[%clk 0:01:16]} 17... fxg2 {[%clk 0:01:08.8]} 18.
Rh2 {[%clk 0:01:08.6]} 18... Qg4 {[%clk 0:01:00.8]} 19. Rxg2 {[%clk 0:01:07.5]}
19... Qh5 {[%clk 0:00:53.8]} 20. Rh2 {[%clk 0:01:06]} 20... Qf7 {[%clk
0:00:53.3]} 21. Nf3 {[%clk 0:01:02.9]} 21... Bg4 {[%clk 0:00:50.8]} 22. Rf1
{[%clk 0:01:02.3]} 22... Qe6 {[%clk 0:00:43.2]} 23. Rhf2 {[%clk 0:00:48.2]}
23... Na6 {[%clk 0:00:35.3]} 24. d5 {[%clk 0:00:47.4]} 24... Qd7 {[%clk
0:00:33]} 25. Nd4 {[%clk 0:00:43.4]} 25... Nc5 {[%clk 0:00:30.2]} 26. Bc2 {[%clk
0:00:41.9]} 26... a5 {[%clk 0:00:23.8]} 27. Kb2 {[%clk 0:00:28.6]} 27... c6
{[%clk 0:00:24.9]} 28. e4 {[%clk 0:00:28.3]} 28... cxd5 {[%clk 0:00:24.3]} 29.
exd5 {[%clk 0:00:30.2]} 29... e5 {[%clk 0:00:22.6]} 30. Rxf6 {[%clk 0:00:26.7]}
30... exd4 {[%clk 0:00:21.4]} 31. Qxd4 {[%clk 0:00:28.6]} 31... Kg8 {[%clk
0:00:11.6]} 32. Qxc5 {[%clk 0:00:15.5]} 32... Re8 {[%clk 0:00:08.5]} 33. Qd4
{[%clk 0:00:12.8]} 33... Re2 {[%clk 0:00:06.9]} 34. Rf7 {[%clk 0:00:11.2]} 34...
Qxf7 {[%clk 0:00:06.8]} 35. Rxf7 {[%clk 0:00:13.1]} 35... Kxf7 {[%clk
0:00:06.9]} 36. Qxg4 {[%clk 0:00:14.2]} 1-0

[Event "*** Titled Tuesday 3|2 Blitz"]
[Site "Chess.com"]
[Date "2015.08.04"]
[Round "1"]
[White "WanderingPuppet"]
[Black "Beca95"]
[Result "0-1"]
[WhiteElo "2198"]
[BlackElo "2558"]
[TimeControl "180+2"]
[EndTime "11:38:47 PDT"]
[Termination "Beca95 won by resignation"]

1. e4 {[%clk 0:03:01.9]} 1... d6 {[%clk 0:02:59.7]} 2. d4 {[%clk 0:03:02.1]}
2... Nf6 {[%clk 0:03:01.2]} 3. Nc3 {[%clk 0:03:03.4]} 3... e5 {[%clk 0:03:02.9]}
4. Nf3 {[%clk 0:03:03.1]} 4... Nbd7 {[%clk 0:03:03.4]} 5. Bc4 {[%clk 0:03:03.7]}
5... Be7 {[%clk 0:03:04.6]} 6. O-O {[%clk 0:02:57.3]} 6... Nb6 {[%clk
0:03:05.4]} 7. Bb3 {[%clk 0:02:51.6]} 7... exd4 {[%clk 0:03:06.3]} 8. Qxd4
{[%clk 0:02:39.3]} 8... O-O {[%clk 0:03:06.6]} 9. h3 {[%clk 0:02:29.9]} 9...
Nfd7 {[%clk 0:03:06.8]} 10. Be3 {[%clk 0:02:24.3]} 10... Nc5 {[%clk 0:03:07.5]}
11. Nd5 {[%clk 0:02:09.6]} 11... Nxd5 {[%clk 0:03:02.3]} 12. Bxd5 {[%clk
0:02:03.3]} 12... c6 {[%clk 0:02:45.6]} 13. Bc4 {[%clk 0:01:48.8]} 13... b5
{[%clk 0:02:45.9]} 14. Be2 {[%clk 0:01:45.9]} 14... Bb7 {[%clk 0:02:43.1]} 15.
Rfd1 {[%clk 0:01:39.6]} 15... Re8 {[%clk 0:02:42.8]} 16. e5 {[%clk 0:01:34.4]}
16... d5 {[%clk 0:02:42.5]} 17. Qg4 {[%clk 0:01:31.6]} 17... Ne6 {[%clk
0:02:42]} 18. a4 {[%clk 0:01:29.1]} 18... a6 {[%clk 0:02:41.2]} 19. Bh6 {[%clk
0:00:47.4]} 19... Bf8 {[%clk 0:02:37.7]} 20. Bd3 {[%clk 0:00:36]} 20... Kh8
{[%clk 0:02:16.9]} 21. Bc1 {[%clk 0:00:34.7]} 21... g6 {[%clk 0:02:08.8]} 22.
Ng5 {[%clk 0:00:32.8]} 22... Nxg5 {[%clk 0:02:05.7]} 23. Bxg5 {[%clk 0:00:34.7]}
23... Be7 {[%clk 0:02:07]} 24. Bf4 {[%clk 0:00:30.9]} 24... Qc8 {[%clk
0:02:07.3]} 25. Qf3 {[%clk 0:00:31.4]} 25... Qe6 {[%clk 0:02:07.8]} 26. Re1
{[%clk 0:00:31.5]} 26... Bf8 {[%clk 0:02:08.3]} 27. Qg3 {[%clk 0:00:32]} 27...
Bg7 {[%clk 0:02:09.1]} 28. Re2 {[%clk 0:00:26.1]} 28... c5 {[%clk 0:02:06.7]}
29. c3 {[%clk 0:00:24.4]} 29... Bc6 {[%clk 0:02:07.7]} 30. axb5 {[%clk
0:00:24.8]} 30... axb5 {[%clk 0:02:08.6]} 31. Rae1 {[%clk 0:00:24.5]} 31... b4
{[%clk 0:02:06.1]} 32. cxb4 {[%clk 0:00:24.2]} 32... c4 {[%clk 0:02:07.5]} 33.
Bb1 {[%clk 0:00:23.3]} 33... d4 {[%clk 0:02:08.7]} 34. Be4 {[%clk 0:00:18.6]}
34... Bxe4 {[%clk 0:02:01.5]} 35. Rxe4 {[%clk 0:00:19.3]} 35... Red8 {[%clk
0:02:01.1]} 36. Bg5 {[%clk 0:00:18.5]} 36... Rd5 {[%clk 0:01:57.7]} 37. Qf4
{[%clk 0:00:16.8]} 37... d3 {[%clk 0:01:55.4]} 38. Qh4 {[%clk 0:00:07.3]} 38...
Kg8 {[%clk 0:01:37.1]} 39. f4 {[%clk 0:00:08.4]} 39... Rc8 {[%clk 0:01:32]} 40.
Qf2 {[%clk 0:00:07.9]} 40... Bf8 {[%clk 0:01:30.6]} 41. Kh1 {[%clk 0:00:07.7]}
41... Bxb4 {[%clk 0:01:31]} 42. Rc1 {[%clk 0:00:08.4]} 42... d2 {[%clk
0:01:32.2]} 43. Rd1 {[%clk 0:00:09.8]} 43... Rd3 {[%clk 0:01:32.9]} 44. f5
{[%clk 0:00:10.3]} 44... Qxf5 {[%clk 0:01:31.5]} 45. Qxf5 {[%clk 0:00:10.9]}
45... gxf5 {[%clk 0:01:33.4]} 46. Rh4 {[%clk 0:00:11.8]} 46... Re8 {[%clk
0:01:27.7]} 47. Bf6 {[%clk 0:00:12.7]} 47... Re3 {[%clk 0:01:22.4]} 48. Kh2
{[%clk 0:00:12.7]} 48... Re1 {[%clk 0:01:23]} 49. Rxd2 {[%clk 0:00:13.1]} 49...
Bxd2 {[%clk 0:01:23.3]} 50. Rxc4 {[%clk 0:00:15]} 50... R1xe5 {[%clk 0:01:21.8]}
51. Bxe5 {[%clk 0:00:15.5]} 51... Rxe5 {[%clk 0:01:22.1]} 52. Kg3 {[%clk
0:00:17.4]} 52... Kg7 {[%clk 0:01:22.7]} 53. Kf3 {[%clk 0:00:18.2]} 53... Ba5
{[%clk 0:01:21.5]} 54. g4 {[%clk 0:00:18.8]} 54... fxg4+ {[%clk 0:01:21.8]} 55.
hxg4 {[%clk 0:00:20.7]} 55... Rb5 {[%clk 0:01:21.5]} 0-1

[Event "*** Titled Tuesday 3|2 Blitz"]
[Site "Chess.com"]
[Date "2015.08.04"]
[Round "1"]
[White "yurisolo"]
[Black "talaicito"]
[Result "1-0"]
[WhiteElo "2392"]
[BlackElo "1989"]
[TimeControl "180+2"]
[EndTime "11:39:01 PDT"]
[Termination "yurisolo won on time"]

1. e4 {[%clk 0:03:01.9]} 1... e6 {[%clk 0:02:55.3]} 2. d4 {[%clk 0:03:00.8]}
2... d5 {[%clk 0:02:55.6]} 3. Nc3 {[%clk 0:03:02.4]} 3... Bb4 {[%clk 0:02:55.2]}
4. e5 {[%clk 0:03:03.4]} 4... c5 {[%clk 0:02:53.1]} 5. a3 {[%clk 0:03:05.3]}
5... Bxc3+ {[%clk 0:02:53.8]} 6. bxc3 {[%clk 0:03:07.2]} 6... Qc7 {[%clk
0:02:55]} 7. h4 {[%clk 0:03:05.8]} 7... cxd4 {[%clk 0:02:47.7]} 8. cxd4 {[%clk
0:03:07.7]} 8... Qc3+ {[%clk 0:02:45.4]} 9. Bd2 {[%clk 0:03:09]} 9... Qxd4
{[%clk 0:02:41.1]} 10. Nf3 {[%clk 0:03:10.5]} 10... Qa4 {[%clk 0:02:37.3]} 11.
h5 {[%clk 0:03:07.2]} 11... h6 {[%clk 0:02:35.3]} 12. Bb4 {[%clk 0:02:59.2]}
12... Nc6 {[%clk 0:02:28.3]} 13. Bd6 {[%clk 0:02:45.4]} 13... Qa5+ {[%clk
0:02:16.9]} 14. Qd2 {[%clk 0:02:40.3]} 14... Qxd2+ {[%clk 0:02:15]} 15. Kxd2
{[%clk 0:02:42.2]} 15... Nge7 {[%clk 0:02:15.5]} 16. g4 {[%clk 0:02:40.9]} 16...
Bd7 {[%clk 0:02:09.7]} 17. Rb1 {[%clk 0:02:42.2]} 17... b6 {[%clk 0:02:09]} 18.
Ba6 {[%clk 0:02:36.2]} 18... Bc8 {[%clk 0:02:05.8]} 19. Bd3 {[%clk 0:02:34.6]}
19... Na5 {[%clk 0:01:51.2]} 20. Nd4 {[%clk 0:02:30.2]} 20... Bd7 {[%clk
0:01:51.3]} 21. Nb5 {[%clk 0:02:26.8]} 21... Bxb5 {[%clk 0:01:41.4]} 22. Bxb5+
{[%clk 0:02:28.7]} 22... Nec6 {[%clk 0:01:41.8]} 23. Rh3 {[%clk 0:02:23.3]}
23... Kd7 {[%clk 0:01:32.7]} 24. Rf3 {[%clk 0:02:12.6]} 24... f6 {[%clk
0:01:28.4]} 25. Bb4 {[%clk 0:02:13.5]} 25... Kc7 {[%clk 0:01:04.3]} 26. exf6
{[%clk 0:02:00.4]} 26... gxf6 {[%clk 0:00:51.7]} 27. Rxf6 {[%clk 0:02:00.8]}
27... Nxb4 {[%clk 0:00:52.4]} 28. axb4 {[%clk 0:02:01.3]} 28... Nc4+ {[%clk
0:00:43.6]} 29. Bxc4 {[%clk 0:02:01.2]} 29... dxc4 {[%clk 0:00:44.5]} 30. Re1
{[%clk 0:01:55.9]} 30... a5 {[%clk 0:00:29.8]} 31. Rexe6 {[%clk 0:01:37.5]}
31... axb4 {[%clk 0:00:20.1]} 32. Rc6+ {[%clk 0:01:34.3]} 32... Kd7 {[%clk
0:00:20.2]} 33. Rxb6 {[%clk 0:01:35.4]} 33... c3+ {[%clk 0:00:18.6]} 34. Kd3
{[%clk 0:01:35.3]} 34... Ke7 {[%clk 0:00:16.2]} 35. Rfe6+ {[%clk 0:01:23.2]}
35... Kf7 {[%clk 0:00:16.4]} 36. Rxh6 {[%clk 0:01:24.1]} 36... Rhd8+ {[%clk
0:00:15.3]} 37. Rhd6 {[%clk 0:01:24.8]} 37... Rg8 {[%clk 0:00:10.9]} 38. Rb7+
{[%clk 0:01:18.5]} 38... Ke8 {[%clk 0:00:10.6]} 39. Rxb4 {[%clk 0:01:19]} 39...
Rg5 {[%clk 0:00:09]} 40. Rg6 {[%clk 0:01:10]} 40... Rd8+ {[%clk 0:00:09.9]} 41.
Ke4 {[%clk 0:01:09.9]} 41... Rxg6 {[%clk 0:00:09]} 42. hxg6 {[%clk 0:01:10.4]}
42... Ke7 {[%clk 0:00:10.2]} 43. g5 {[%clk 0:01:05.3]} 43... Rd2 {[%clk
0:00:10.5]} 44. Rb8 {[%clk 0:00:48.6]} 44... Rxc2 {[%clk 0:00:10.4]} 45. g7
{[%clk 0:00:49.9]} 45... Re2+ {[%clk 0:00:06.4]} 46. Kf3 {[%clk 0:00:49.1]}
46... c2 {[%clk 0:00:03.8]} 47. Rc8 {[%clk 0:00:42.6]} 1-0

[Event "*** Titled Tuesday 3|2 Blitz"]
[Site "Chess.com"]
[Date "2015.08.04"]
[Round "1"]
[White "Zlatan56"]
[Black "NMJeevanK"]
[Result "1-0"]
[WhiteElo "2371"]
[BlackElo "1974"]
[TimeControl "180+2"]
[EndTime "11:39:15 PDT"]
[Termination "Zlatan56 won by checkmate"]

1. c4 {[%clk 0:02:30.7]} 1... e5 {[%clk 0:02:59.7]} 2. Nc3 {[%clk 0:02:30.9]}
2... Bb4 {[%clk 0:02:57.3]} 3. Nd5 {[%clk 0:02:30]} 3... Be7 {[%clk 0:02:58.3]}
4. d4 {[%clk 0:02:28.9]} 4... c6 {[%clk 0:02:54.9]} 5. Nxe7 {[%clk 0:02:28.8]}
5... Qxe7 {[%clk 0:02:55.1]} 6. dxe5 {[%clk 0:02:30.5]} 6... Qxe5 {[%clk
0:02:55.3]} 7. Nf3 {[%clk 0:02:31.3]} 7... Qe7 {[%clk 0:02:53.5]} 8. Bf4 {[%clk
0:02:28.1]} 8... Qb4+ {[%clk 0:02:50.7]} 9. Qd2 {[%clk 0:02:25]} 9... Qxd2+
{[%clk 0:02:36.5]} 10. Nxd2 {[%clk 0:02:25.3]} 10... Nf6 {[%clk 0:02:37.6]} 11.
g4 {[%clk 0:02:22.5]} 11... Nxg4 {[%clk 0:02:22.4]} 12. Rg1 {[%clk 0:02:21.3]}
12... d5 {[%clk 0:02:19.3]} 13. Rc1 {[%clk 0:01:59.7]} 13... dxc4 {[%clk
0:02:10.4]} 14. Nxc4 {[%clk 0:01:58]} 14... O-O {[%clk 0:01:48.3]} 15. Nd6
{[%clk 0:01:57.7]} 15... Be6 {[%clk 0:01:40.8]} 16. Nxb7 {[%clk 0:01:56.3]}
16... Nd7 {[%clk 0:01:32.9]} 17. Bg2 {[%clk 0:01:56.5]} 17... Bxa2 {[%clk
0:01:27.8]} 18. Bxc6 {[%clk 0:01:53.6]} 18... Nge5 {[%clk 0:01:20.5]} 19. Bxd7
{[%clk 0:01:41.5]} 19... Nxd7 {[%clk 0:01:21.2]} 20. Bh6 {[%clk 0:01:42.3]}
20... g6 {[%clk 0:01:08]} 21. Bxf8 {[%clk 0:01:43]} 21... Rxf8 {[%clk
0:01:09.1]} 22. Ra1 {[%clk 0:01:30.1]} 22... Bd5 {[%clk 0:01:05.6]} 23. Rxa7
{[%clk 0:01:26.8]} 23... Rb8 {[%clk 0:01:06.5]} 24. Na5 {[%clk 0:01:20.6]} 24...
Ne5 {[%clk 0:00:59.3]} 25. Rg5 {[%clk 0:01:14.7]} 25... f6 {[%clk 0:00:58.1]}
26. Rg3 {[%clk 0:01:15.1]} 26... Rxb2 {[%clk 0:00:58.1]} 27. Rc3 {[%clk
0:01:15.7]} 27... Nf7 {[%clk 0:00:44.6]} 28. Nc6 {[%clk 0:01:10.8]} 28... Rb1+
{[%clk 0:00:41.9]} 29. Kd2 {[%clk 0:01:10.7]} 29... Rb2+ {[%clk 0:00:42.8]} 30.
Kd1 {[%clk 0:01:10.8]} 30... Kg7 {[%clk 0:00:23.1]} 31. Nd8 {[%clk 0:01:10.3]}
31... Rb1+ {[%clk 0:00:15.8]} 32. Kd2 {[%clk 0:01:11.2]} 32... Rb2+ {[%clk
0:00:16.1]} 33. Ke3 {[%clk 0:01:11.8]} 33... Rb8 {[%clk 0:00:13.8]} 34. Nxf7
{[%clk 0:01:09.7]} 34... Bxf7 {[%clk 0:00:15.7]} 35. Rcc7 {[%clk 0:01:10.7]}
35... Rf8 {[%clk 0:00:17.3]} 36. Kf4 {[%clk 0:01:09]} 36... f5 {[%clk
0:00:16.1]} 37. h4 {[%clk 0:01:04.9]} 37... Kf6 {[%clk 0:00:15]} 38. Rc6+ {[%clk
0:01:05]} 38... Be6 {[%clk 0:00:13.3]} 39. Raa6 {[%clk 0:01:03.6]} 39... Re8
{[%clk 0:00:14.4]} 40. f3 {[%clk 0:01:04.6]} 40... h6 {[%clk 0:00:15.6]} 41. e4
{[%clk 0:00:57]} 41... fxe4 {[%clk 0:00:14.2]} 42. Kxe4 {[%clk 0:00:51.7]} 42...
Kf7 {[%clk 0:00:09.6]} 43. Rc7+ {[%clk 0:00:51.6]} 43... Kf6 {[%clk 0:00:09.4]}
44. Rh7 {[%clk 0:00:50.1]} 44... h5 {[%clk 0:00:07.5]} 45. Rc7 {[%clk
0:00:50.7]} 45... Re7 {[%clk 0:00:07.7]} 46. Rxe7 {[%clk 0:00:50.8]} 46... Kxe7
{[%clk 0:00:09.6]} 47. Ke5 {[%clk 0:00:51.9]} 47... Bf5 {[%clk 0:00:11.1]} 48.
Ra7+ {[%clk 0:00:52.5]} 48... Kf8 {[%clk 0:00:12.5]} 49. Kf6 {[%clk 0:00:53.6]}
49... Kg8 {[%clk 0:00:14]} 50. Rg7+ {[%clk 0:00:54.6]} 50... Kh8 {[%clk
0:00:15.3]} 51. Rxg6 {[%clk 0:00:55.5]} 51... Bxg6 {[%clk 0:00:16.3]} 52. Kxg6
{[%clk 0:00:56.5]} 52... Kg8 {[%clk 0:00:18.2]} 53. Kxh5 {[%clk 0:00:57.6]}
53... Kh7 {[%clk 0:00:20.1]} 54. f4 {[%clk 0:00:57.7]} 54... Kg7 {[%clk
0:00:22]} 55. Kg5 {[%clk 0:00:58.5]} 55... Kh7 {[%clk 0:00:23.9]} 56. h5 {[%clk
0:00:59.4]} 56... Kg7 {[%clk 0:00:25.8]} 57. f5 {[%clk 0:01:00.8]} 57... Kh7
{[%clk 0:00:27.7]} 58. f6 {[%clk 0:00:59]} 58... Kg8 {[%clk 0:00:29.6]} 59. Kg6
{[%clk 0:01:00]} 59... Kh8 {[%clk 0:00:30.2]} 60. h6 {[%clk 0:00:59]} 60... Kg8
{[%clk 0:00:31.5]} 61. f7+ {[%clk 0:01:00]} 61... Kh8 {[%clk 0:00:32.6]} 62.
f8=Q# {[%clk 0:01:00.2]} 1-0

[Event "*** Titled Tuesday 3|2 Blitz"]
[Site "Chess.com"]
[Date "2015.08.04"]
[Round "1"]
[White "aNONoNonono"]
[Black "Cryptochess"]
[Result "0-1"]
[WhiteElo "1997"]
[BlackElo "2362"]
[TimeControl "180+2"]
[EndTime "11:39:23 PDT"]
[Termination "Cryptochess won by resignation"]

1. e4 {[%clk 0:03:01.9]} 1... d6 {[%clk 0:02:53.3]} 2. d4 {[%clk 0:03:01.9]}
2... Nf6 {[%clk 0:02:54.6]} 3. Nc3 {[%clk 0:03:02.2]} 3... g6 {[%clk 0:02:53.4]}
4. f4 {[%clk 0:03:01.9]} 4... Bg7 {[%clk 0:02:47.9]} 5. Nf3 {[%clk 0:03:01.7]}
5... c5 {[%clk 0:02:48.9]} 6. Bb5+ {[%clk 0:02:57.8]} 6... Bd7 {[%clk
0:02:49.6]} 7. Bxd7+ {[%clk 0:02:55.4]} 7... Nfxd7 {[%clk 0:02:51.5]} 8. O-O
{[%clk 0:02:42.6]} 8... cxd4 {[%clk 0:02:47.9]} 9. Nxd4 {[%clk 0:02:35.4]} 9...
Nc6 {[%clk 0:02:35.3]} 10. Be3 {[%clk 0:02:31.3]} 10... O-O {[%clk 0:02:34.6]}
11. Kh1 {[%clk 0:02:31.8]} 11... Rc8 {[%clk 0:02:34.2]} 12. Qd2 {[%clk
0:02:29.2]} 12... Nb6 {[%clk 0:02:31.8]} 13. b3 {[%clk 0:02:16.5]} 13... Qc7
{[%clk 0:01:46.6]} 14. Rf3 {[%clk 0:02:12.2]} 14... a6 {[%clk 0:01:34.8]} 15.
Nxc6 {[%clk 0:02:01.4]} 15... Qxc6 {[%clk 0:01:33.2]} 16. Bd4 {[%clk 0:02:00.6]}
16... e5 {[%clk 0:01:27.3]} 17. fxe5 {[%clk 0:01:57.3]} 17... dxe5 {[%clk
0:01:27.8]} 18. Bxb6 {[%clk 0:01:56]} 18... Qxb6 {[%clk 0:01:29.7]} 19. Nd5
{[%clk 0:01:55.5]} 19... Qe6 {[%clk 0:01:28.7]} 20. c4 {[%clk 0:01:53]} 20... f5
{[%clk 0:01:25.2]} 21. Raf1 {[%clk 0:01:39.9]} 21... fxe4 {[%clk 0:01:13.3]} 22.
Rxf8+ {[%clk 0:01:40.2]} 22... Rxf8 {[%clk 0:01:13.7]} 23. Rxf8+ {[%clk
0:01:40.3]} 23... Bxf8 {[%clk 0:01:13.9]} 24. Qe2 {[%clk 0:01:36.4]} 24... Qf5
{[%clk 0:01:09.1]} 25. h3 {[%clk 0:01:17.9]} 25... Kg7 {[%clk 0:01:02.4]} 26.
Nc3 {[%clk 0:01:13.8]} 26... e3 {[%clk 0:00:54.8]} 27. Qxe3 {[%clk 0:01:12.8]}
27... Bb4 {[%clk 0:00:54.1]} 28. Nd5 {[%clk 0:01:10.2]} 28... Qf1+ {[%clk
0:00:40.8]} 29. Kh2 {[%clk 0:01:10.9]} 29... Bd6 {[%clk 0:00:41.3]} 30. Qe4
{[%clk 0:00:51.7]} 30... b5 {[%clk 0:00:37.9]} 31. c5 {[%clk 0:00:50.5]} 31...
Bxc5 {[%clk 0:00:34.6]} 32. Qxe5+ {[%clk 0:00:49.6]} 32... Kh6 {[%clk
0:00:26.1]} 33. Ne3 {[%clk 0:00:34.3]} 33... Bxe3 {[%clk 0:00:15.5]} 34. Qxe3+
{[%clk 0:00:35.2]} 34... Kg7 {[%clk 0:00:16.7]} 35. Qe7+ {[%clk 0:00:36.2]}
35... Kh6 {[%clk 0:00:17.7]} 36. Qe3+ {[%clk 0:00:36.1]} 36... Kg7 {[%clk
0:00:18.7]} 37. Qe7+ {[%clk 0:00:37]} 37... Qf7 {[%clk 0:00:19.6]} 38. Qe5+
{[%clk 0:00:38.1]} 38... Qf6 {[%clk 0:00:20.6]} 39. Qc7+ {[%clk 0:00:38]} 39...
Kh6 {[%clk 0:00:22]} 40. Qc1+ {[%clk 0:00:37.7]} 40... g5 {[%clk 0:00:22.7]} 41.
h4 {[%clk 0:00:35.1]} 41... Qf4+ {[%clk 0:00:18.9]} 42. Qxf4 {[%clk 0:00:30.2]}
42... gxf4 {[%clk 0:00:20.8]} 43. g4 {[%clk 0:00:30.7]} 43... fxg3+ {[%clk
0:00:16.6]} 44. Kxg3 {[%clk 0:00:30.8]} 44... Kg6 {[%clk 0:00:18.2]} 45. Kg4
{[%clk 0:00:24.3]} 45... b4 {[%clk 0:00:13.9]} 46. h5+ {[%clk 0:00:20.6]} 46...
Kf6 {[%clk 0:00:14.8]} 47. Kf4 {[%clk 0:00:21.7]} 47... h6 {[%clk 0:00:15.9]}
48. Kg4 {[%clk 0:00:22.2]} 48... Ke5 {[%clk 0:00:17]} 49. Kf3 {[%clk 0:00:23.3]}
49... Kf5 {[%clk 0:00:18.2]} 50. Kg3 {[%clk 0:00:24.4]} 50... Kg5 {[%clk
0:00:19.4]} 51. Kh3 {[%clk 0:00:26.1]} 51... Kxh5 {[%clk 0:00:20.3]} 52. Kg3
{[%clk 0:00:27.6]} 52... Kg5 {[%clk 0:00:21.8]} 53. Kf3 {[%clk 0:00:28.6]} 53...
Kf5 {[%clk 0:00:23.1]} 54. Kg3 {[%clk 0:00:29.8]} 54... Ke4 {[%clk 0:00:24.4]}
55. Kg4 {[%clk 0:00:31]} 55... Kd3 {[%clk 0:00:26.1]} 0-1